bitfinex-derivatives/quotes_SOLF0:USTF0_20250923
["timestamp","ask_amount","ask_price","bid_price","bid_amount"]
[1758643180788,7.61,219.36,219.29,11.3512]
[1758643182784,4.1002,219.35,219.29,11.3512]
[1758643184689,74.53627316,219.38,219.27,4.1016]
[1758643184890,74.53627316,219.38,219.25,7.25]
[1758643185087,7.61,219.33,219.25,7.25]
[1758643185590,7.61,219.29,219.25,7.25]
[1758643186594,4.1013,219.3,219.25,7.25]
[1758643186793,7.61,219.29,219.25,7.25]
[1758643188792,7.61,219.29,219.23,4.1024]
[1758643189796,7.61,219.29,219.23,11.3524]
[1758643190200,11.7114,219.29,219.23,7.25]
[1758643191597,11.7114,219.29,219.23,11.3523]
[1758643191795,7.61,219.29,219.23,7.25]
[1758643192798,7.61,219.29,219.25,7.25]
[1758643193094,7.68,219.36,219.23,71.4655]
[1758643193398,5.10664794,219.39,219.33,4.1004]
[1758643193696,7.68,219.4,219.33,4.1004]
[1758643194096,11.7793,219.4,219.34,4.1002]
[1758643194296,7.68,219.4,219.32,10.80277316]
[1758643194696,7.68,219.4,219.35,4.1]
[1758643194899,7.68,219.4,219.36,7.65]
[1758643196396,7.68,219.41,219.36,7.65]
[1758643196597,4.099,219.42,219.36,7.65]
[1758643196900,7.68,219.41,219.36,7.65]
[1758643197099,11.779,219.42,219.36,7.65]
[1758643198194,11.779,219.42,219.36,11.7499]
[1758643199796,11.7792,219.41,219.33,4.1005]
[1758643199998,7.68,219.41,219.33,4.1005]
[1758643200898,4.0994,219.4,219.33,4.1005]
[1758643201701,7.68,219.41,219.32,7.65]
[1758643202501,5.11031161,219.46,219.32,7.65]
[1758643202700,349.79031161,219.47,219.32,7.65]
[1758643202901,462.27031161,219.47,219.32,7.65]
[1758643203203,7.68,219.46,219.32,7.65]
[1758643203596,11.7796,219.39,219.32,11.7507]
[1758643204604,4.0998,219.38,219.32,11.7507]
[1758643205299,5.11031161,219.45,219.33,63.786]
[1758643205497,7.68,219.47,219.34,7.65]
[1758643206001,7.68,219.47,219.29,7.65]
[1758643206002,7.68,219.44,219.29,7.65]
[1758643206400,4.0996,219.39,219.32,4.1007]
[1758643206606,11.7796,219.39,219.32,4.1007]
[1758643206801,11.7796,219.39,219.29,7.65]
[1758643207001,7.68,219.44,219.31,7.65]
[1758643207802,7.68,219.44,219.33,71.4366]
[1758643207997,7.68,219.44,219.34,7.65]
[1758643208403,7.68,219.44,219.4,7.65]
[1758643208703,27.1,219.47,219.37,7.65]
[1758643209005,27.1,219.47,219.44,7.65]
[1758643209409,34.78,219.47,219.34,7.65]
[1758643209807,4.0986,219.44,219.34,7.65]
[1758643210009,34.78,219.47,219.34,7.65]
[1758643210203,98.5271,219.47,219.34,7.65]
[1758643210507,7.68,219.46,219.34,7.65]
[1758643210811,4.0986,219.44,219.34,7.65]
[1758643211805,4.0986,219.44,219.38,4.0995]
[1758643212211,11.7782,219.46,219.37,7.65]
[1758643212405,7.68,219.46,219.4,4.0991]
[1758643213209,7.68,219.46,219.4,11.7491]
[1758643214716,7.68,219.46,219.38,4.0996]
[1758643215815,4.0987,219.44,219.38,4.0996]
[1758643216617,63.7678,219.4,219.26,7.16]
[1758643216822,7.7,219.39,219.26,7.16]
[1758643217022,7.7,219.37,219.26,7.16]
[1758643217314,11.8008,219.32,219.19,5.10500102]
[1758643217518,11.8008,219.32,219.2,7.16]
[1758643218017,4.1003,219.35,219.26,4.1018]
[1758643218414,4.1003,219.35,219.28,2.01769641]
[1758643218615,11.7998,219.37,219.28,6.11919641]
[1758643219013,11.7998,219.37,219.31,2.01769641]
[1758643219520,11.8002,219.35,219.28,7.16]
[1758643220019,11.8002,219.35,219.25,6.11959641]
[1758643221020,11.8002,219.35,219.26,4.1017]
[1758643221423,4.1006,219.33,219.26,4.1017]
[1758643223122,32.06,219.39,219.29,7.21]
[1758643223319,32.06,219.39,219.31,2.01769641]
[1758643224118,7.6,219.4,219.31,2.01769641]
[1758643224325,7.6,219.4,219.33,4.1005]
[1758643225930,7.6,219.4,219.35,4.1002]
[1758643226223,9.61769641,219.44,219.34,9.22769641]
[1758643226725,13.71639641,219.44,219.36,4.0998]
[1758643228931,9.61769641,219.44,219.37,4.0996]
[1758643229636,344.56,219.46,219.38,7.21]
[1758643229831,7.6,219.49,219.43,2.01769641]
[1758643230033,7.6,219.54,219.48,4.0977]
[1758643230831,7.6,219.54,219.5,2.01769641]
[1758643231437,7.6,219.59,219.5,6.11509641]
[1758643231934,7.6,219.59,219.53,2.01769641]
[1758643232524,7.6,219.59,219.52,4.097]
[1758643232726,7.6,219.59,219.52,11.307]
[1758643232930,113.76,219.6,219.52,11.307]
[1758643233133,7.6,219.64,219.55,7.21]
[1758643233834,7.6,219.64,219.56,4.0962]
[1758643234148,7.6,219.64,219.55,7.21]
[1758643234431,90.88,219.67,219.59,7.21]
[1758643234830,7.6,219.7,219.59,7.21]
[1758643238839,4.0943,219.67,219.59,7.21]
[1758643239240,7.6,219.7,219.59,7.21]
[1758643239441,4.0941,219.68,219.59,7.21]
[1758643241034,4.0941,219.68,219.59,11.3056]
[1758643241234,7.6,219.7,219.59,7.21]
[1758643242739,4.0939,219.69,219.59,7.21]
[1758643243536,4.0943,219.67,219.59,7.21]
[1758643244039,4.0946,219.65,219.54,7.21]
[1758643244344,7.6,219.64,219.54,7.21]
[1758643244847,7.6,219.64,219.54,11.3066]
[1758643245042,7.6,219.64,219.55,7.21]
[1758643245342,113.42,219.67,219.56,7.21]
[1758643245537,113.42,219.67,219.59,7.21]
[1758643245740,7.6,219.68,219.59,7.21]
[1758643246244,7.6,219.68,219.6,4.0955]
[1758643247048,7.6,219.68,219.59,7.21]
[1758643247449,71.287,219.68,219.53,7.21]
[1758643247745,63.6943,219.65,219.53,7.21]
[1758643248042,7.6,219.64,219.53,7.21]
[1758643248242,121.14,219.64,219.53,7.21]
[1758643248636,4.0955,219.6,219.53,7.21]
[1758643250735,7.6,219.61,219.53,11.3068]
[1758643250942,4.095,219.63,219.53,11.3068]
[1758643251141,113.54,219.64,219.53,7.21]
[1758643251746,4.0952,219.62,219.54,4.0966]
[1758643252742,4.0952,219.62,219.55,2.01271986]
[1758643253043,4.0956,219.6,219.53,7.21]
[1758643253347,6.97,219.59,219.5,2.01271986]
[1758643254948,6.97,219.59,219.49,108.19879284]
[1758643254949,6.97,219.69,219.56,7.39]
[1758643255150,2.01271986,219.68,219.58,2.01271986]
[1758643256049,6.97,219.67,219.56,9.40271986]
[1758643256251,2.01271986,219.65,219.56,2.01271986]
[1758643256446,6.97,219.64,219.56,2.01271986]
[1758643256955,6.97,219.64,219.54,4.0965]
[1758643256956,6.97,219.64,219.54,2.01271986]
[1758643257141,6.97,219.64,219.52,7.39]
[1758643257450,11.0654,219.61,219.53,6.10931986]
[1758643258149,4.0957,219.6,219.53,6.10931986]
[1758643258555,4.0957,219.6,219.53,4.0966]
[1758643259055,6.97,219.61,219.5,4.0972]
[1758643259551,6.97,219.57,219.49,100.80879284]
[1758643259747,6.97,219.63,219.5,7.39]
[1758643259954,6.97,219.63,219.55,4.0963]
[1758643260148,6.97,219.63,219.52,7.39]
[1758643260851,6.97,219.63,219.59,7.39]
[1758643261356,6.97,219.67,219.52,7.39]
[1758643261755,4.0948,219.64,219.56,4.0962]
[1758643261952,6.97,219.63,219.52,7.39]
[1758643262653,6.97,219.63,219.54,7.39]
[1758643262845,6.97,219.68,219.54,7.39]
[1758643263044,4.0944,219.67,219.58,4.0957]
[1758643263448,6.97,219.66,219.54,7.39]
[1758643263856,6.97,219.62,219.54,7.39]
[1758643264455,11.0653,219.62,219.54,11.4866]
[1758643264647,6.97,219.62,219.54,7.39]
[1758643264950,6.97,219.62,219.5,7.39]
[1758643265553,6.97,219.62,219.52,7.39]
[1758643267857,6.97,219.59,219.52,7.39]
[1758643268055,6.97,219.59,219.45,7.39]
[1758643268452,4.0963,219.56,219.49,4.0974]
[1758643268656,11.0663,219.56,219.49,4.0974]
[1758643269051,6.97,219.56,219.51,11.4871]
[1758643269463,70.67,219.63,219.51,4.0971]
[1758643269967,11.0663,219.57,219.48,4.0976]
[1758643270563,11.0663,219.57,219.49,4.0974]
[1758643270859,11.0663,219.57,219.47,7.39]
[1758643271967,11.0663,219.57,219.5,4.0973]
[1758643272263,4.0964,219.56,219.47,7.39]
[1758643273260,4.0964,219.56,219.49,4.0974]
[1758643273861,6.97,219.57,219.5,4.0972]
[1758643274067,68.81031161,219.63,219.48,63.7418]
[1758643274068,5.11031161,219.63,219.48,63.7418]
[1758643274262,7.2,219.61,219.5,7.5]
[1758643275368,5.11031161,219.65,219.52,63.7316]
[1758643275559,12.31031161,219.66,219.53,7.5]
[1758643275757,7.2,219.65,219.53,7.5]
[1758643275967,7.2,219.63,219.53,7.5]
[1758643277370,7.2,219.63,219.57,4.0959]
[1758643277664,7.2,219.63,219.53,7.5]
[1758643278368,5.11031161,219.66,219.59,7.5]
[1758643278571,7.2,219.67,219.59,7.5]
[1758643278968,9.20381161,219.71,219.64,4.0946]
[1758643279161,12.31031161,219.72,219.64,4.0946]
[1758643279363,1.138083,219.71,219.62,63.7027]
[1758643279569,1.138083,219.7,219.63,7.5]
[1758643279770,1.138083,219.69,219.63,7.5]
[1758643280067,1.138083,219.68,219.67,4.0942]
[1758643280270,7.2,219.76,219.67,7.5]
[1758643280459,1.13782278,219.75,219.67,7.5]
[1758643280665,1.13782278,219.74,219.67,11.5942]
[1758643280867,1.13782278,219.73,219.67,11.5942]
[1758643281064,1.13782278,219.72,219.68,7.5]
[1758643281258,4.092,219.79,219.66,7.5]
[1758643281469,1.13779739,219.78,219.66,7.5]
[1758643281661,4.092,219.79,219.66,7.5]
[1758643281662,1.13779739,219.77,219.66,7.5]
[1758643281862,1.13779739,219.76,219.66,7.5]
[1758643282161,1.13779739,219.75,219.71,7.5]
[1758643282358,1.13779739,219.74,219.71,7.5]
[1758643282659,4.0924,219.77,219.67,4.094]
[1758643282868,1.1377172,219.76,219.67,11.594]
[1758643283063,1.1377172,219.75,219.67,11.594]
[1758643283260,4.0927,219.75,219.67,7.5]
[1758643283461,1.13774142,219.74,219.64,4.0946]
[1758643283680,7.54,219.76,219.57,63.7168]
[1758643283681,8.67774142,219.73,219.62,7.4]
[1758643283866,1.13774142,219.72,219.62,7.4]
[1758643284670,1.13774142,219.72,219.57,63.7168]
[1758643284671,7.54,219.68,219.58,4.0957]
[1758643284875,4.0938,219.69,219.55,101.2240405]
[1758643284876,7.54,219.74,219.59,7.4]
[1758643285078,1.13807192,219.73,219.59,7.4]
[1758643285370,1.13807192,219.72,219.64,7.4]
[1758643285570,7.54,219.74,219.64,7.4]
[1758643285772,532.0,219.92,219.63,4.0949]
[1758643285773,1.13795872,219.73,219.66,7.4]
[1758643285967,7.54,219.8,219.66,7.4]
[1758643286159,1.13777256,219.79,219.66,7.4]
[1758643286365,1.13777256,219.78,219.66,11.4942]
[1758643286666,1.13777256,219.77,219.66,11.4942]
[1758643286867,8.67777256,219.76,219.66,11.4942]
[1758643287067,1.13778851,219.75,219.66,11.4942]
[1758643287265,7.54,219.76,219.68,4.094]
[1758643288065,7.54,219.76,219.66,7.4]
[1758643288477,1.13781257,219.75,219.66,7.4]
[1758643288676,7.54,219.76,219.66,7.4]
[1758643288873,1.13781257,219.75,219.66,7.4]
[1758643289071,7.54,219.76,219.66,7.4]
[1758643289471,1.13782869,219.75,219.67,4.0942]
[1758643289671,7.54,219.76,219.67,4.0942]
[1758643291371,11.6325,219.76,219.67,4.0942]
[1758643291677,7.54,219.74,219.64,4.0946]
[1758643292079,11.633,219.74,219.65,4.0944]
[1758643293480,7.54,219.74,219.67,4.0942]
[1758643294884,7.54,219.74,219.64,4.0946]
[1758643295083,1.13802347,219.73,219.62,7.4]
[1758643295290,7.54,219.71,219.57,7.4]
[1758643295587,7.54,219.68,219.57,7.4]
[1758643296084,7.54,219.68,219.62,4.0951]
[1758643296274,7.54,219.68,219.57,7.4]
[1758643296682,4.0942,219.67,219.6,4.0955]
[1758643296882,7.54,219.68,219.6,4.0955]
[1758643298287,4.0945,219.66,219.57,11.4959]
[1758643298788,7.54,219.68,219.57,7.4]
[1758643299792,7.54,219.66,219.57,4.096]
[1758643299982,7.54,219.64,219.57,4.096]
[1758643300792,11.6348,219.64,219.54,4.0965]
[1758643300992,1.1383796,219.63,219.48,7.4]
[1758643301180,1.1383796,219.63,219.5,63.7364]
[1758643301181,1.13849201,219.62,219.5,63.7364]
[1758643301387,7.54,219.63,219.53,7.4]
[1758643302891,7.54,219.63,219.57,4.0959]
[1758643303086,7.54,219.63,219.53,7.4]
[1758643304394,112.7843,219.69,219.53,7.4]
[1758643304395,1.13847595,219.62,219.53,7.4]
[1758643304594,7.54,219.61,219.53,7.4]
[1758643304789,11.6355,219.61,219.53,11.4966]
[1758643304988,7.54,219.61,219.53,7.4]
[1758643305390,7.54,219.61,219.48,7.4]
[1758643305590,7.54,219.59,219.48,7.4]
[1758643305791,7.54,219.57,219.48,7.4]
[1758643305995,1.13862674,219.56,219.48,7.4]
[1758643306194,7.54,219.57,219.48,7.4]
[1758643306896,7.54,219.57,219.48,4.0976]
[1758643307400,25.27605106,219.57,219.48,4.0976]
[1758643308094,25.27605106,219.57,219.5,4.0973]
[1758643308500,25.27605106,219.57,219.45,63.7521]
[1758643309194,25.27605106,219.57,219.48,4.0977]
[1758643309596,25.27605106,219.57,219.45,63.7521]
[1758643311001,25.27605106,219.57,219.49,4.0974]
[1758643313304,25.27605106,219.57,219.5,4.0972]
[1758643316404,25.27605106,219.57,219.47,7.4]
[1758643316405,7.29,219.55,219.48,4.0977]
[1758643316908,7.29,219.55,219.46,4.0981]
[1758643317406,4.0968,219.54,219.47,4.0978]
[1758643318199,7.29,219.53,219.47,4.0978]
[1758643318908,7.29,219.53,219.45,4.0983]
[1758643319302,11.3868,219.53,219.45,4.0983]
[1758643319607,7.29,219.53,219.43,7.02]
[1758643319903,7.29,219.55,219.48,4.0976]
[1758643320801,7.29,219.55,219.49,4.0974]
[1758643321404,7.29,219.6,219.49,7.02]
[1758643321607,20.93071802,219.6,219.49,7.02]
[1758643321812,7.29,219.6,219.49,7.02]
[1758643323507,4.096,219.58,219.51,4.0971]
[1758643323708,7.29,219.61,219.49,7.02]
[1758643324006,7.29,219.59,219.49,7.02]
[1758643324315,7.29,219.59,219.5,4.0972]
[1758643325016,3.14604958,219.61,219.49,7.02]
[1758643325017,4.0963,219.56,219.49,7.02]
[1758643325215,7.29,219.56,219.48,4.0977]
[1758643325414,7.29,219.56,219.45,7.02]
[1758643326710,11.3872,219.51,219.45,11.1182]
[1758643327608,7.29,219.51,219.46,4.098]
[1758643327803,7.29,219.56,219.45,7.02]
[1758643328008,31.96,219.55,219.45,7.02]
[1758643328614,77.5064,219.56,219.5,4.0972]
[1758643330012,113.68,219.57,219.47,63.7459]
[1758643330212,113.68,219.57,219.48,7.02]
[1758643330614,117.7762,219.57,219.49,4.0974]
[1758643330916,7.29,219.56,219.48,7.02]
[1758643331111,7.29,219.56,219.44,10.16604958]
[1758643331819,4.0965,219.55,219.47,4.0979]
[1758643332019,113.68,219.57,219.47,4.0979]
[1758643332020,7.29,219.54,219.47,4.0979]
[1758643333022,7.29,219.54,219.45,4.0983]
[1758643333219,1.13893794,219.53,219.41,3.14604958]
[1758643333534,1.13893794,219.53,219.37,135.7478]
[1758643333535,71.0256,219.51,219.4,7.02]
[1758643333816,7.12,219.49,219.39,4.0993]
[1758643334022,7.12,219.47,219.36,11.0498]
[1758643334326,7.12,219.47,219.36,6.95]
[1758643334620,11.218,219.47,219.38,4.0995]
[1758643335119,4.0983,219.46,219.37,4.0997]
[1758643335422,7.12,219.47,219.37,4.0997]
[1758643335720,4.0985,219.45,219.37,4.0997]
[1758643336022,4.0985,219.45,219.39,4.0994]
[1758643336822,4.0985,219.45,219.36,13.06620056]
[1758643337122,4.0985,219.45,219.36,8.96630056]
[1758643337316,13.23430056,219.47,219.38,4.0994]
[1758643337511,1.1392903,219.46,219.38,4.0994]
[1758643337714,1.1392903,219.45,219.38,4.0994]
[1758643337917,13.23430056,219.47,219.38,4.0994]
[1758643338122,9.13630056,219.44,219.36,13.06630056]
[1758643338416,1.13934709,219.43,219.36,13.06630056]
[1758643338619,9.13630056,219.44,219.36,13.06630056]
[1758643338813,9.13630056,219.44,219.36,11.05]
[1758643339019,4.0989,219.42,219.36,6.95]
[1758643339221,4.0989,219.42,219.33,6.11670056]
[1758643339421,7.12,219.41,219.33,6.11670056]
[1758643340319,2.01630056,219.44,219.34,6.95]
[1758643340521,2.01630056,219.44,219.36,2.01630056]
[1758643340724,41.12,219.44,219.37,6.95]
[1758643341327,41.12,219.44,219.38,4.0995]
[1758643341521,41.12,219.44,219.37,6.95]
[1758643342122,41.12,219.44,219.36,2.01630056]
[1758643342320,41.12,219.44,219.36,6.11610056]
[1758643343026,7.12,219.43,219.36,6.11610056]
[1758643343216,7.12,219.43,219.34,4.1004]
[1758643343422,7.43,219.4,219.33,6.95]
[1758643345124,20.97520633,219.4,219.33,6.95]
[1758643345326,20.97520633,219.4,219.32,4.1006]
[1758643346126,20.97520633,219.4,219.33,4.1004]
[1758643346316,134.61520633,219.4,219.33,4.1004]
[1758643347226,4.0995,219.39,219.3,4.1009]
[1758643347432,4.0995,219.39,219.3,6.11720056]
[1758643347626,7.43,219.39,219.3,6.11720056]
[1758643348122,127.18520633,219.4,219.3,2.01630056]
[1758643348322,2.01630056,219.35,219.25,6.98]
[1758643348630,7.43,219.31,219.2,6.98]
[1758643348827,7.43,219.28,219.2,6.98]
[1758643350124,4.1021,219.27,219.18,4.1036]
[1758643350623,4.1021,219.27,219.17,2.01630056]
[1758643350624,9.44630056,219.26,219.17,2.01630056]
[1758643351022,13.54870056,219.26,219.16,6.98]
[1758643351223,9.44630056,219.26,219.16,8.99630056]
[1758643351624,4.1026,219.25,219.16,8.99630056]
[1758643352624,7.43,219.24,219.16,8.99630056]
[1758643353032,4.1028,219.23,219.16,2.01630056]
[1758643353425,105.25,219.22,219.13,2.01630056]
[1758643353729,109.3532,219.22,219.13,2.01630056]
[1758643353933,7.43,219.21,219.12,6.98]
[1758643354324,7.43,219.21,219.09,4.1053]
[1758643354325,4.1034,219.2,219.09,11.0853]
[1758643354527,13.54970056,219.2,219.1,2.01630056]
[1758643354935,7.43,219.17,219.06,11.0858]
[1758643355130,7.43,219.17,219.08,2.01630056]
[1758643356129,7.43,219.17,219.1,4.1052]
[1758643357336,20.85674015,219.17,219.1,4.1052]
[1758643358435,20.85674015,219.17,219.08,2.01630056]
[1758643359533,20.85674015,219.17,219.11,4.105]
[1758643360127,92.85674015,219.17,219.11,4.105]
[1758643360639,92.85674015,219.17,219.09,2.01630056]
[1758643360833,2.01630056,219.16,219.06,8.99630056]
[1758643361037,7.43,219.15,219.06,13.10230056]
[1758643361633,7.43,219.15,219.06,2.01630056]
[1758643362038,4.1045,219.14,219.06,2.01630056]
[1758643362441,7.43,219.15,219.06,2.01630056]
[1758643363841,7.43,219.15,219.06,6.12230056]
[1758643364042,11.5343,219.15,219.06,6.12230056]
[1758643364436,7.43,219.15,219.08,4.1055]
[1758643364632,113.48,219.14,219.08,4.1055]
[1758643365039,113.48,219.14,219.06,6.12230056]
[1758643365840,113.48,219.14,219.06,2.01630056]
[1758643365841,7.43,219.13,219.06,2.01630056]
[1758643366037,7.43,219.13,219.04,2.01630056]
[1758643366239,9.44630056,219.13,219.04,2.01630056]
[1758643366844,13.55110056,219.13,219.04,2.01630056]
[1758643367646,7.43,219.11,219.04,2.01630056]
[1758643368245,7.43,219.11,219.03,4.1064]
[1758643372043,7.43,219.11,219.01,6.98]
[1758643372243,7.43,219.16,219.08,8.99630056]
[1758643372450,25.22,219.15,219.08,8.99630056]
[1758643373448,7.15,219.14,219.07,2.01630056]
[1758643373949,7.15,219.14,219.07,6.12200056]
[1758643374549,11.2547,219.14,219.07,2.01630056]
[1758643375551,7.15,219.14,219.05,2.01630056]
[1758643375752,7.15,219.14,219.06,7.11]
[1758643375947,93.82,219.16,219.09,7.11]
[1758643376752,7.15,219.15,219.08,2.01630056]
[1758643377252,4.1046,219.14,219.08,2.01630056]
[1758643377946,11.2548,219.13,219.05,9.12630056]
[1758643378448,7.15,219.13,219.08,2.01630056]
[1758643378751,70.61,219.16,219.08,9.12630056]
[1758643378952,74.7143,219.16,219.08,13.23180056]
[1758643380346,70.61,219.16,219.08,13.23180056]
[1758643380552,70.61,219.16,219.09,4.1053]
[1758643381142,70.61,219.16,219.08,9.12630056]
[1758643381350,72.62630056,219.16,219.05,2.01630056]
[1758643381547,7.15,219.12,219.02,2.01630056]
[1758643381954,7.15,219.12,219.0,7.11]
[1758643381955,120.55,219.12,219.05,2.01630056]
[1758643382850,120.55,219.12,219.04,7.11]
[1758643382851,122.56630056,219.12,219.04,7.11]
[1758643383052,122.56630056,219.12,219.02,2.01630056]
[1758643383756,7.15,219.12,219.05,2.01630056]
[1758643384458,4.1052,219.11,219.05,2.01630056]
[1758643384660,2.01630056,219.13,219.03,7.11]
[1758643384661,7.15,219.1,219.03,7.11]
[1758643385858,11.2554,219.1,219.03,7.11]
[1758643386358,11.2554,219.1,219.03,11.2164]
[1758643386955,7.15,219.1,219.03,7.11]
[1758643388057,7.15,219.1,218.93,72.1241]
[1758643388255,7.15,219.1,219.01,2.01630056]
[1758643388859,4.1055,219.09,219.01,6.12310056]
[1758643389054,4.1055,219.09,219.01,2.01630056]
[1758643389256,113.36,219.09,219.01,6.12310056]
[1758643389458,11.2554,219.1,219.01,2.01630056]
[1758643389657,113.34,219.09,219.02,7.11]
[1758643389958,113.34,219.09,219.03,4.1064]
[1758643391059,120.49,219.09,219.04,11.2162]
[1758643391260,120.47,219.09,219.05,7.32]
[1758643391457,12.6092177,219.13,219.05,11.426]
[1758643391659,113.28,219.1,219.05,11.426]
[1758643391861,7.54,219.09,219.05,11.426]
[1758643392453,5.0692177,219.12,219.05,4.106]
[1758643392654,7.54,219.14,219.08,7.32]
[1758643392858,12.6092177,219.19,219.13,2.01630056]
[1758643393156,5.0692177,219.18,219.13,9.33630056]
[1758643393463,5.0692177,219.21,219.13,9.33630056]
[1758643393763,122.5525177,219.21,219.13,13.44090056]
[1758643394264,5.0692177,219.2,219.13,13.44090056]
[1758643394652,5.0692177,219.2,219.15,4.1043]
[1758643394855,15.14382655,219.23,219.1,63.8579]
[1758643394856,5.0692177,219.22,219.17,7.32]
[1758643395155,5.0692177,219.22,219.16,2.01630056]
[1758643395156,7.54,219.21,219.16,9.33630056]
[1758643395352,16.7123177,219.22,219.13,2.01630056]
[1758643395556,5.0692177,219.21,219.13,2.01630056]
[1758643396250,5.0692177,219.15,219.05,7.32]
[1758643396456,5.0692177,219.13,219.05,7.32]
[1758643396654,9.1739177,219.13,219.05,7.32]
[1758643397257,4.105,219.12,219.05,7.32]
[1758643397456,9.1742177,219.12,219.05,7.32]
[1758643398157,4.1053,219.1,219.05,7.32]
[1758643398465,7.54,219.09,219.01,7.32]
[1758643398860,12.6092177,219.09,219.01,7.32]
[1758643399058,4.1059,219.07,219.01,7.32]
[1758643400261,11.6461,219.06,218.96,10.48107828]
[1758643400459,16.7153177,219.06,218.96,10.48107828]
[1758643400860,16.7153177,219.06,218.96,14.58877828]
[1758643401266,11.6461,219.06,218.96,14.58877828]
[1758643401656,5.0692177,219.07,218.97,7.32]
[1758643401863,5.0692177,219.08,218.97,7.32]
[1758643402060,12.6092177,219.08,218.97,7.32]
[1758643402772,118.8492177,219.1,218.98,63.8944]
[1758643402959,118.8492177,219.1,219.01,7.32]
[1758643403158,113.78,219.1,219.01,7.32]
[1758643403560,113.78,219.1,219.04,7.29]
[1758643403760,11.645,219.12,219.04,7.29]
[1758643403761,12.6092177,219.12,219.04,7.29]
[1758643403960,7.54,219.12,219.04,7.29]
[1758643404366,7.54,219.12,219.06,4.1058]
[1758643405362,7.54,219.12,219.04,7.29]
[1758643405664,11.6448,219.12,219.04,7.29]
[1758643406066,16.7140177,219.12,219.04,7.29]
[1758643406365,11.6448,219.12,219.04,7.29]
[1758643407058,16.7140177,219.12,219.04,7.29]
[1758643407259,16.7140177,219.12,219.0,14.55797828]
[1758643407465,7.0,219.1,219.0,10.45107828]
[1758643408564,7.0,219.1,219.02,4.1067]
[1758643408766,7.0,219.1,219.01,7.29]
[1758643409757,5.0692177,219.14,219.06,11.3958]
[1758643409956,113.66,219.13,219.06,7.29]
[1758643411664,7.0,219.12,219.02,7.29]
[1758643412768,11.1049,219.12,219.04,4.1062]
[1758643414071,4.1052,219.11,219.04,4.1062]
[1758643414372,4.1052,219.11,219.02,7.29]
[1758643415970,4.1052,219.11,219.03,4.1064]
[1758643417072,4.1052,219.11,219.02,7.29]
[1758643417073,7.0,219.1,219.02,7.29]
[1758643419773,4.1055,219.09,219.02,7.29]
[1758643421570,7.0,219.1,219.02,7.29]
[1758643421872,7.0,219.15,219.06,7.29]
[1758643422879,58.42,219.16,219.07,63.868]
[1758643423083,58.42,219.16,219.08,7.29]
[1758643423683,58.42,219.16,219.1,4.1051]
[1758643423884,120.42,219.17,219.08,7.29]
[1758643424087,7.0,219.17,219.08,7.29]
[1758643424585,11.1041,219.17,219.1,4.1052]
[1758643425086,7.0,219.17,219.11,4.1049]
[1758643425488,120.42,219.17,219.08,7.29]
[1758643425886,7.0,219.16,219.12,4.1047]